fUSD/lending_fUSD_20241222
["ID","MTS","AMOUNT","RATE_DAILY","PERIOD"]
[346277112,1734859844587,-500.0,0.00019726,2]
[346277113,1734859844597,-573.43,0.00019726,2]
[346277114,1734859844607,-500.0,0.00019726,2]
[346277115,1734859844616,-500.0,0.00019726,2]
[346277116,1734859844626,-500.0,0.00019726,2]
[346277117,1734859844635,-500.0,0.00019726,2]
[346277118,1734859844644,-500.0,0.00019726,2]
[346277119,1734859844654,-500.0,0.00019726,2]
[346277120,1734859844663,-506.66316573,0.00019726,2]
[346277121,1734859844673,-748.06,0.00019726,2]
[346277122,1734859844683,-500.0,0.00019726,2]
[346277123,1734859844693,-500.0,0.00019726,2]
[346277124,1734859844703,-500.0,0.00019726,2]
[346277125,1734859844713,-500.0,0.00019726,2]
[346277126,1734859844722,-500.0,0.00019726,2]
[346277127,1734859844732,-1001.34,0.00019726,2]
[346277128,1734859844742,-500.0,0.00019726,2]
[346277129,1734859844752,-500.0,0.00019726,2]
[346277130,1734859844761,-500.0,0.00019726,2]
[346277131,1734859844772,-717.56,0.00019726,2]
[346277132,1734859844782,-500.0,0.00019726,2]
[346277133,1734859844792,-500.0,0.00019726,2]
[346277134,1734859844802,-500.0,0.00019726,2]
[346277135,1734859844811,-500.0,0.00019726,2]
[346277136,1734859844820,-518.38,0.00019726,2]
[346277137,1734859844831,-634.93,0.00019726,2]
[346277138,1734859844841,-500.0,0.00019726,2]
[346277139,1734859844851,-500.0,0.00019726,2]
[346277140,1734859844860,-500.0,0.00019726,2]
[346277141,1734859844870,-500.0,0.00019726,2]
[346277142,1734859844880,-502.58,0.00019726,2]
[346277143,1734859844889,-500.0,0.00019726,2]
[346277144,1734859844898,-500.0,0.00019726,2]
[346277145,1734859844907,-466.63508302,0.00019726,2]
[346277146,1734859844917,-500.0,0.00019726,2]
[346277147,1734859844927,-500.0,0.00019726,2]
[346277148,1734859844936,-500.0,0.00019726,2]
[346277149,1734859844947,-500.0,0.00019726,2]
[346277150,1734859844956,-500.0,0.00019726,2]
[346277151,1734859844966,-500.0,0.00019726,2]
[346277152,1734859844975,-500.0,0.00019726,2]
[346277153,1734859844985,-500.0,0.00019726,2]
[346277154,1734859844995,-500.0,0.00019726,2]
[346277155,1734859845006,-360.12092287,0.00019726,2]
[346277156,1734859845015,-852.08,0.00019726,2]
[346277157,1734859845026,-500.0,0.00019726,2]
[346277158,1734859845035,-500.0,0.00019726,2]
[346277159,1734859845044,-500.0,0.00019726,2]
[346277160,1734859845054,-500.0,0.00019726,2]
[346277161,1734859845063,-500.0,0.00019726,2]
[346277162,1734859845073,-500.0,0.00019726,2]
[346277163,1734859845083,-500.0,0.00019726,2]
[346277164,1734859845092,-500.0,0.00019726,2]
[346277165,1734859845102,-500.0,0.00019726,2]
[346277166,1734859845112,-500.0,0.00019726,2]
[346277167,1734859845122,-500.0,0.00019726,2]
[346277168,1734859845132,-978.65,0.00019726,2]
[346277169,1734859845143,-557.98,0.00019726,2]
[346277170,1734859845152,-500.0,0.00019726,2]
[346277171,1734859845161,-696.39,0.00019726,2]
[346277172,1734859845171,-500.0,0.00019726,2]
[346277173,1734859845181,-441.60686102,0.00019726,2]
[346277174,1734859845191,-500.0,0.00019726,2]
[346277175,1734859845203,-500.0,0.00019726,2]
[346277176,1734859845212,-500.0,0.00019726,2]
[346277177,1734859845222,-507.74,0.00019726,2]
[346277178,1734859845232,-500.0,0.00019726,2]
[346277179,1734859845241,-500.0,0.00019726,2]
[346277180,1734859845250,-2889.29,0.00019726,2]
[346277181,1734859845260,-500.0,0.00019726,2]
[346277182,1734859845269,-500.0,0.00019726,2]
[346277183,1734859845279,-500.0,0.00019726,2]
[346277184,1734859845288,-973.78,0.00019726,2]
[346277185,1734859845298,-689.56,0.00019726,2]
[346277186,1734859845307,-500.0,0.00019726,2]
[346277187,1734859845316,-929.78,0.00019726,2]
[346277188,1734859845325,-680.79,0.00019726,2]
[346277189,1734859845334,-500.0,0.00019726,2]
[346277190,1734859845343,-1460.08,0.00019726,2]
[346277191,1734859845353,-732.85,0.00019726,2]
[346277192,1734859845362,-1363.68,0.00019726,2]
[346277193,1734859845371,-875.5,0.00019726,2]
[346277194,1734859845380,-760.42,0.00019726,2]
[346277195,1734859845389,-10528.19,0.00019726,2]
[346277196,1734859845400,-500.0,0.00019726,2]
[346277197,1734859845410,-611.74,0.00019726,2]
[346277198,1734859845421,-1824.2,0.00019726,2]
[346277199,1734859845430,-559.82,0.00019726,2]
[346277200,1734859845440,-8798.92,0.00019726,2]
[346277201,1734859845450,-500.0,0.00019726,2]
[346277202,1734859845459,-500.0,0.00019726,2]
[346277203,1734859845469,-1000.26,0.00019726,2]
[346277204,1734859845479,-500.0,0.00019726,2]
[346277205,1734859845491,-709.0,0.00019726,2]
[346277206,1734859845501,-562.25,0.00019726,2]
[346277207,1734859845511,-966.19,0.00019726,2]
[346277208,1734859845521,-500.0,0.00019726,2]
[346277209,1734859845531,-1099.83,0.00019726,2]
[346277210,1734859845542,-624.44,0.00019726,2]
[346277211,1734859845552,-500.0,0.00019726,2]
[346277212,1734859845562,-650.36,0.00019726,2]
[346277213,1734859845571,-555.82,0.00019726,2]
[346277214,1734859845581,-500.0,0.00019726,2]
[346277215,1734859845590,-6692.92,0.00019726,2]
[346277216,1734859845600,-826.91,0.00019726,2]
[346277217,1734859845609,-1064.53,0.00019726,2]
[346277218,1734859845619,-580.41,0.00019726,2]
[346277219,1734859845628,-519.68,0.00019726,2]
[346277220,1734859845637,-668.27,0.00019726,2]
[346277221,1734859845647,-500.0,0.00019726,2]
[346277222,1734859845656,-1516.73,0.00019726,2]
[346277223,1734859845666,-500.0,0.00019726,2]
[346277224,1734859845675,-500.98,0.00019726,2]
[346277225,1734859845684,-1394.3,0.00019726,2]
[346277226,1734859845694,-500.0,0.00019726,2]
[346277228,1734859845703,-1981.85,0.00019726,2]
[346277230,1734859845713,-500.0,0.00019726,2]
[346277232,1734859845723,-2384.57,0.00019726,2]
[346277233,1734859845732,-500.0,0.00019726,2]
[346277234,1734859845741,-2329.25,0.00019726,2]
[346277235,1734859845751,-786.56,0.00019726,2]
[346277236,1734859845760,-809.32,0.00019726,2]
[346277237,1734859845770,-539.8,0.00019726,2]
[346277238,1734859845780,-500.0,0.00019726,2]
[346277239,1734859845789,-750.36,0.00019726,2]
[346277240,1734859845799,-763.69,0.00019726,2]
[346277241,1734859845808,-13466.15,0.00019726,2]
[346277242,1734859845817,-518.43,0.00019726,2]
[346277243,1734859845827,-2540.46,0.00019726,2]
[346277244,1734859845837,-22222.97,0.00019726,2]
[346277245,1734859845846,-1361.38,0.00019726,2]
[346277246,1734859845856,-500.0,0.00019726,2]
[346277247,1734859845865,-670.6,0.00019726,2]
[346277248,1734859845875,-674.83,0.00019726,2]
[346277249,1734859845884,-500.0,0.00019726,2]
[346277250,1734859845893,-1788.86,0.00019726,2]
[346277251,1734859845902,-500.0,0.00019726,2]
[346277252,1734859845911,-2373.5,0.00019726,2]
[346277253,1734859845921,-6504.97,0.00019726,2]
[346277254,1734859845930,-500.0,0.00019726,2]
[346277255,1734859845939,-683.29,0.00019726,2]
[346277256,1734859845949,-2321.87,0.00019726,2]
[346277257,1734859845958,-1095.88,0.00019726,2]
[346277258,1734859845967,-644.27,0.00019726,2]
[346277259,1734859845976,-500.0,0.00019726,2]
[346277260,1734859845986,-4770.55,0.00019726,2]
[346277261,1734859845996,-2230.66,0.00019726,2]
[346277262,1734859846005,-979.05,0.00019726,2]
[346277263,1734859846014,-500.0,0.00019726,2]
[346277264,1734859846023,-500.0,0.00019726,2]
[346277265,1734859846033,-3180.89,0.00019726,2]
[346277266,1734859846042,-1217.46,0.00019726,2]
[346277267,1734859846051,-500.0,0.00019726,2]
[346277268,1734859846061,-2759.44,0.00019726,2]
[346277269,1734859846070,-500.0,0.00019726,2]
[346277270,1734859846080,-500.0,0.00019726,2]
[346277271,1734859846089,-642.2,0.00019726,2]
[346277272,1734859846099,-500.0,0.00019726,2]
[346277273,1734859846108,-9708.87,0.00019726,2]
[346277274,1734859846117,-882.3,0.00019726,2]
[346277275,1734859846126,-6166.62,0.00019726,2]
[346277276,1734859846135,-3631.54,0.00019726,2]
[346277277,1734859846144,-1660.3,0.00019726,2]
[346277278,1734859846153,-2280.25,0.00019726,2]
[346277279,1734859846166,-500.0,0.00019726,2]
[346277280,1734859846175,-1117.59,0.00019726,2]
[346277281,1734859846184,-1125.4,0.00019726,2]
[346277282,1734859846193,-500.0,0.00019726,2]
[346277283,1734859846203,-500.0,0.00019726,2]
[346277284,1734859846213,-500.0,0.00019726,2]
[346277285,1734859846222,-500.0,0.00019726,2]
[346277286,1734859846231,-732.88,0.00019726,2]
[346277287,1734859846241,-1000.0,0.00019726,2]
[346277288,1734859846250,-658.83,0.00019726,2]
[346277289,1734859846259,-500.0,0.00019726,2]
[346277290,1734859846268,-500.0,0.00019726,2]
[346277291,1734859846277,-586.02,0.00019726,2]
[346277292,1734859846287,-500.0,0.00019726,2]
[346277293,1734859846296,-500.0,0.00019726,2]
[346277294,1734859846305,-1891.71,0.00019726,2]
[346277295,1734859846315,-20963.85,0.00019726,2]
[346277296,1734859846323,-500.0,0.00019726,2]
[346277297,1734859846333,-500.0,0.00019726,2]
[346277298,1734859846343,-935.79,0.00019726,2]
[346277299,1734859846352,-552.13,0.00019726,2]
[346277301,1734859846361,-500.0,0.00019726,2]
[346277303,1734859846370,-500.0,0.00019726,2]
[346277304,1734859846379,-688.25,0.00019726,2]
[346277305,1734859846389,-1269.77,0.00019726,2]
[346277306,1734859846398,-786.76,0.00019726,2]
[346277307,1734859846407,-500.0,0.00019726,2]
[346277309,1734859846417,-500.0,0.00019726,2]
[346277311,1734859846426,-625.05,0.00019726,2]
[346277313,1734859846435,-500.0,0.00019726,2]
[346277314,1734859846444,-741.47,0.00019726,2]
[346277316,1734859846454,-996.12,0.00019726,2]
[346277318,1734859846463,-608.01467674,0.00019726,2]
[346277320,1734859846473,-3469.88,0.00019726,2]
[346277322,1734859846482,-1898.0,0.00019788,2]
[346277324,1734859846491,-1256.0,0.00019788,2]
[346277325,1734859846501,-3770.0,0.00019788,2]
[346277326,1734859846510,-925.0,0.00019788,2]
[346277327,1734859846519,-818.0,0.00019788,2]
[346277328,1734859846529,-3682.0,0.00019788,2]
[346277329,1734859846539,-536.0,0.00019788,2]
[346277330,1734859846548,-1101.0,0.00019788,2]
[346277331,1734859846557,-2010.0,0.00019788,2]
[346277332,1734859846566,-1265.0,0.00019788,2]
[346277333,1734859846615,-635.0,0.00019788,2]
[346277334,1734859846624,-150.0,0.00019788,2]
[346277335,1734859846634,-3886.0,0.00019788,2]
[346277336,1734859846643,-434.57641549,0.00019789,2]
[346277337,1734859846652,-603.32674214,0.00019789,2]
[346277338,1734859846661,-57623.74078014,0.000198,2]
[346277339,1734859846670,-2175.2,0.000198,2]
[346277340,1734859846679,-3000.0,0.000198,2]
[346277341,1734859846687,-1000.0,0.000198,2]
[346277342,1734859846697,-13727.23172131,0.0001981,2]
[346277343,1734859846708,-500.0,0.0001984,2]
[346277344,1734859846717,-500.0,0.000199,2]
[346277345,1734859846727,-434.57641549,0.000199,2]
[346277346,1734859846736,-603.32674214,0.000199,2]
[346277347,1734859846746,-1000.0,0.000199,2]
[346277348,1734859846756,-1526.0,0.000199,2]
[346277349,1734859846766,-7355.31,0.00019984,2]
[346277350,1734859846776,-40000.0,0.00019985,2]
[346277351,1734859846785,-21311.7830106,0.0001999,2]
[346277352,1734859846795,-15416.27835465,0.0001999,2]
[346277353,1734859846804,-7355.31,0.00019994,2]
[346277354,1734859846813,-281464.05707525,0.00019995,2]
[346277355,1734859846822,-248.9930711,0.00019996,2]
[346277356,1734859846831,-248.9930711,0.00019996,2]
[346277357,1734859846841,-248.9930711,0.00019996,2]
[346277358,1734859846850,-248.9930711,0.00019996,2]
[346277359,1734859846859,-248.9930711,0.00019996,2]
[346277360,1734859846869,-248.9930711,0.00019996,2]
[346277361,1734859846878,-614.4539791,0.00019996,2]
[346277362,1734859846887,-798.8116798,0.00019996,2]
[346277363,1734859846896,-983.1693806,0.00019996,2]
[346277364,1734859846905,-1167.5270813,0.00019996,2]
[346277365,1734859846915,-1351.884782,0.00019996,2]
[346277366,1734859846924,-1536.2424827,0.00019996,2]
[346277367,1734859846933,-1130.6178367,0.00019996,2]
[346277368,1734859846943,-1469.8427613,0.00019996,2]
[346277369,1734859846956,-1809.0676859,0.00019996,2]
[346277370,1734859846965,-2148.2926105,0.00019996,2]
[346277371,1734859846974,-2487.5175351,0.00019996,2]
[346277372,1734859846983,-2826.7424597,0.00019996,2]
[346277373,1734859846992,-300.0,0.00019999,2]
[346277374,1734859847001,-675.33170954,0.00019999,2]
[346277375,1734859847011,-479.57265574,0.00019999,5]
[346277376,1734859847020,-500.0,0.00019999,2]
[346277377,1734859847029,-7355.31,0.00019999,2]
[346277378,1734859847038,-7355.31,0.00019999,2]
[346277379,1734859847047,-7355.31,0.00019999,2]
[346277380,1734859847057,-7355.31,0.00019999,2]
[346277381,1734859847066,-7355.31,0.00019999,2]
[346277382,1734859847075,-7355.31,0.00019999,2]
[346277383,1734859847084,-7355.31,0.00019999,2]
[346277384,1734859847093,-7355.31,0.00019999,2]
[346277385,1734859847102,-7355.31,0.00019999,2]
[346277386,1734859847111,-7355.31,0.00019999,2]
[346277387,1734859847121,-7355.31,0.00019999,2]
[346277388,1734859847130,-7355.31,0.00019999,2]
[346277389,1734859847139,-7355.31,0.00019999,2]
[346277390,1734859847148,-7355.31,0.00019999,2]
[346277391,1734859847160,-7355.31,0.00019999,2]
[346277392,1734859847170,-7355.53,0.00019999,2]
[346277393,1734859847180,-150.0,0.00019999,2]
[346277394,1734859847189,-150.0,0.00019999,2]
[346277395,1734859847200,-2655092.87993756,0.0002,3]
[346277396,1734859847209,-2307.44501103,0.0002,2]
[346277397,1734859847218,-27821.01261932,0.0002,3]
[346277398,1734859847227,-12276165.34551355,0.0002,2]
[346277399,1734859847692,-3769.76346924,0.0002,2]
[346277400,1734859847704,-1429.7283,0.0002,2]
[346277401,1734859848067,-720.10512692,0.00019788,2]
[346277402,1734859848078,-13035.89487308,0.00019788,2]
[346277403,1734859848088,-9513.10512692,0.0002,2]
[346277404,1734859848099,-791.97021722,0.0002,2]
[346277405,1734859848176,-473.6,0.0002,2]
[346277406,1734859848187,-965.9432584,0.0002,2]
[346277407,1734859848235,-256.07852074,0.0002,2]
[346277408,1734859848247,-8596.68115644,0.0002,2]
[346277409,1734859848394,-801.34031545,0.0002,2]
[346277410,1734859848405,-3722.7247,0.0002,2]
[346277411,1734860583135,16999845.0,0.0002,120]
[346277412,1734860583165,8000000.0,0.0002,120]
[346277413,1734860603197,450.0,0.00013,2]
[346277431,1734861032435,-1020.03,0.00016494,2]
[346277432,1734861032445,-113.37474205,0.00017144,2]
[346277433,1734861032555,-386.62525795,0.00017144,2]
[346277434,1734861032564,-2883.37474205,0.00017696,2]
[346277583,1734861038042,-1004.62525795,0.00017696,2]
[346277584,1734861038052,-500.0,0.0001824,2]
[346277585,1734861038061,-334.27,0.00018367,2]
[346277586,1734861038071,-250.0,0.00018446,2]
[346277587,1734861038080,-1000.0,0.00018491,2]
[346277588,1734861038090,-250.0,0.0001856,2]
[346277589,1734861038099,-3270.0,0.00018668,2]
[346277590,1734861038109,-188.55,0.0001871,2]
[346277591,1734861038119,-1020.03,0.00018758,2]
[346277592,1734861038128,-250.0,0.00018792,2]
[346277593,1734861038138,-165.93,0.00018837,2]
[346277594,1734861038147,-25539.70761723,0.000189,2]
[346277595,1734861038159,-2078.84612217,0.000189,2]
[346277596,1734861038176,-65572.8393606,0.000189,2]
[346277597,1734861038185,-501.76,0.000189,2]
[346277598,1734861038195,-493.01,0.000189,2]
[346277599,1734861038204,-446.901,0.00019,2]
[346277600,1734861038214,-300.0,0.00019014,2]
[346277601,1734861038223,-495.25,0.0001902,2]
[346277602,1734861038233,-1134.06,0.00019072,2]
[346277603,1734861038242,-10258.9725,0.00019078,2]
[346277604,1734861038251,-327.510517,0.00019178,2]
[346277605,1734861038261,-457.382381,0.00019178,2]
[346277606,1734861038271,-662.56,0.00019178,2]
[346277607,1734861038281,-264.78894522,0.00019178,2]
[346277608,1734861038291,-500.0,0.00019178,2]
[346277609,1734861038300,-644.11921505,0.00019178,2]
[346277610,1734861038310,-500.0,0.00019178,2]
[346277611,1734861038319,-500.0,0.00019178,2]
[346277612,1734861038329,-500.0,0.00019178,2]
[346277613,1734861038338,-500.0,0.00019178,2]
[346277614,1734861038348,-410.11656325,0.00019178,2]
[346277615,1734861038357,-500.0,0.00019178,2]
[346277616,1734861038366,-500.0,0.00019178,2]
[346277617,1734861038376,-500.0,0.00019178,2]
[346277618,1734861038386,-500.0,0.00019178,2]
[346277619,1734861038395,-500.0,0.00019178,2]
[346277620,1734861038405,-500.0,0.00019178,2]
[346277621,1734861038415,-500.0,0.00019178,2]
[346277622,1734861038425,-500.0,0.00019178,2]
[346277623,1734861038435,-500.0,0.00019178,2]
[346277624,1734861038444,-500.0,0.00019178,2]
[346277625,1734861038454,-500.0,0.00019178,2]
[346277626,1734861038464,-500.0,0.00019178,2]
[346277627,1734861038474,-226.2712633,0.00019178,2]
[346277628,1734861038483,-500.0,0.00019178,2]
[346277629,1734861038493,-500.0,0.00019178,2]
[346277630,1734861038506,-586.78770973,0.00019178,2]
[346277632,1734861038516,-500.0,0.00019178,2]
[346277633,1734861038526,-500.0,0.00019178,2]
[346277634,1734861038536,-500.0,0.00019178,2]
[346277635,1734861038547,-500.0,0.00019178,2]
[346277636,1734861038557,-500.0,0.00019178,2]
[346277637,1734861038567,-500.0,0.00019178,2]
[346277638,1734861038578,-500.0,0.00019178,2]
[346277639,1734861038587,-500.0,0.00019178,2]
[346277640,1734861038597,-500.0,0.00019178,2]
[346277641,1734861038607,-500.0,0.00019178,2]
[346277642,1734861038617,-500.0,0.00019178,2]
[346277644,1734861038626,-449.99394256,0.00019178,2]
[346277645,1734861038636,-500.0,0.00019178,2]
[346277646,1734861038645,-500.0,0.00019178,2]
[346277647,1734861038655,-500.0,0.00019178,2]
[346277648,1734861038667,-500.0,0.00019178,2]
[346277649,1734861038676,-500.0,0.00019178,2]
[346277650,1734861038686,-500.0,0.00019178,2]
[346277651,1734861038695,-500.0,0.00019178,2]
[346277652,1734861038705,-500.0,0.00019178,2]
[346277653,1734861038715,-500.0,0.00019178,2]
[346277654,1734861038724,-501.75,0.00019178,2]
[346277655,1734861038734,-500.0,0.00019178,2]
[346277656,1734861038743,-500.0,0.00019178,2]
[346277657,1734861038752,-500.0,0.00019178,2]
[346277658,1734861038761,-500.0,0.00019178,2]
[346277659,1734861038771,-500.0,0.00019178,2]
[346277660,1734861038781,-500.0,0.00019178,2]
[346277661,1734861038790,-500.0,0.00019178,2]
[346277662,1734861038799,-500.0,0.00019178,2]
[346277663,1734861038808,-654.55,0.00019178,2]
[346277664,1734861038818,-500.0,0.00019178,2]
[346277665,1734861038827,-500.0,0.00019178,2]
[346277666,1734861038836,-500.0,0.00019178,2]
[346277667,1734861038845,-500.0,0.00019178,2]
[346277668,1734861038856,-500.0,0.00019178,2]
[346277669,1734861038865,-500.0,0.00019178,2]
[346277670,1734861038875,-938.67,0.00019178,2]
[346277671,1734861038885,-285.24937042,0.00019178,2]
[346277672,1734861038894,-627.86,0.00019178,2]
[346277673,1734861038904,-500.0,0.00019178,2]
[346277674,1734861038915,-500.0,0.00019178,2]
[346277675,1734861038925,-500.71977857,0.00019178,2]
[346277676,1734861038934,-500.0,0.00019178,2]
[346277677,1734861038943,-500.0,0.00019178,2]
[346277678,1734861038953,-500.0,0.00019178,2]
[346277679,1734861038962,-500.0,0.00019178,2]
[346277680,1734861038971,-500.0,0.00019178,2]
[346277681,1734861038981,-500.0,0.00019178,2]
[346277682,1734861038990,-500.0,0.00019178,2]
[346277683,1734861038999,-500.0,0.00019178,2]
[346277684,1734861039008,-288.07170349,0.00019178,2]
[346277685,1734861039018,-500.0,0.00019178,2]
[346277686,1734861039027,-500.0,0.00019178,2]
[346277687,1734861039037,-500.0,0.00019178,2]
[346277688,1734861039046,-969.38,0.00019178,2]
[346277689,1734861039056,-500.0,0.00019178,2]
[346277690,1734861039065,-500.0,0.00019178,2]
[346277691,1734861039075,-500.0,0.00019178,2]
[346277692,1734861039084,-500.0,0.00019178,2]
[346277693,1734861039093,-500.0,0.00019178,2]
[346277694,1734861039102,-501.18555819,0.00019178,2]
[346277695,1734861039112,-500.0,0.00019178,2]
[346277696,1734861039121,-500.0,0.00019178,2]
[346277697,1734861039130,-500.0,0.00019178,2]
[346277698,1734861039140,-500.0,0.00019178,2]
[346277699,1734861039148,-500.0,0.00019178,2]
[346277700,1734861039159,-500.0,0.00019178,2]
[346277701,1734861039169,-500.0,0.00019178,2]
[346277702,1734861039179,-500.0,0.00019178,2]
[346277703,1734861039188,-500.0,0.00019178,2]
[346277704,1734861039198,-500.0,0.00019178,2]
[346277705,1734861039208,-500.0,0.00019178,2]
[346277706,1734861039218,-618.06,0.00019178,2]
[346277707,1734861039227,-500.0,0.00019178,2]
[346277708,1734861039237,-240.26229361,0.00019178,2]
[346277709,1734861039247,-330.09472039,0.00019178,2]
[346277710,1734861039256,-500.0,0.00019178,2]
[346277711,1734861039266,-500.0,0.00019178,2]
[346277712,1734861039275,-500.0,0.00019178,2]
[346277713,1734861039284,-500.0,0.00019178,2]
[346277714,1734861039294,-500.0,0.00019178,2]
[346277715,1734861039303,-500.0,0.00019178,2]
[346277716,1734861039312,-500.0,0.00019178,2]
[346277717,1734861039322,-500.0,0.00019178,2]
[346277718,1734861039331,-500.0,0.00019178,2]
[346277719,1734861039340,-500.0,0.00019178,2]
[346277720,1734861039350,-500.0,0.00019178,2]
[346277721,1734861039359,-500.0,0.00019178,2]
[346277722,1734861039369,-500.0,0.00019178,2]
[346277723,1734861039558,-500.0,0.00019178,2]
[346277724,1734861039568,-500.0,0.00019178,2]
[346277725,1734861039578,-500.0,0.00019178,2]
[346277726,1734861039588,-500.0,0.00019178,2]
[346277727,1734861039597,-500.0,0.00019178,2]
[346277728,1734861039606,-500.0,0.00019178,2]
[346277729,1734861039616,-615.84,0.00019178,2]
[346277730,1734861039625,-500.0,0.00019178,2]
[346277731,1734861039635,-500.0,0.00019178,2]
[346277732,1734861039644,-500.0,0.00019178,2]
[346277733,1734861039654,-500.0,0.00019178,2]
[346277734,1734861039665,-500.0,0.00019178,2]
[346277735,1734861039675,-500.0,0.00019178,2]
[346277736,1734861039686,-500.0,0.00019178,2]
[346277737,1734861039696,-500.0,0.00019178,2]
[346277738,1734861039706,-745.57,0.00019178,2]
[346277739,1734861039715,-182.08888841,0.00019178,2]
[346277740,1734861039725,-500.0,0.00019178,2]
[346277741,1734861039735,-500.0,0.00019178,2]
[346277742,1734861039744,-500.0,0.00019178,2]
[346277743,1734861039754,-500.0,0.00019178,2]
[346277744,1734861039763,-500.0,0.00019178,2]
[346277745,1734861039773,-442.59592482,0.00019178,2]
[346277746,1734861039782,-500.0,0.00019178,2]
[346277747,1734861039791,-500.0,0.00019178,2]
[346277748,1734861039801,-500.0,0.00019178,2]
[346277749,1734861039810,-500.0,0.00019178,2]
[346277750,1734861039824,-500.0,0.00019178,2]
[346277751,1734861039839,-617.5,0.00019178,2]
[346277752,1734861039847,-1111.05,0.00019178,2]
[346277754,1734861039857,-500.0,0.00019178,2]
[346277755,1734861039866,-500.0,0.00019178,2]
[346277756,1734861039876,-500.0,0.00019178,2]
[346277757,1734861039886,-500.0,0.00019178,2]
[346277758,1734861039896,-500.0,0.00019178,2]
[346277759,1734861039906,-500.0,0.00019178,2]
[346277760,1734861039917,-500.0,0.00019178,2]
[346277761,1734861039926,-500.0,0.00019178,2]
[346277762,1734861039936,-500.0,0.00019178,2]
[346277763,1734861039946,-500.0,0.00019178,2]
[346277764,1734861039956,-500.0,0.00019178,2]
[346277765,1734861039966,-1116.4,0.00019178,2]
[346277766,1734861039975,-818.82,0.00019178,2]
[346277767,1734861039985,-813.56,0.00019178,2]
[346277768,1734861039994,-2528.13,0.00019178,2]
[346277769,1734861040004,-568.68279165,0.00019178,2]
[346277770,1734861040013,-688.42,0.00019178,2]
[346277771,1734861040022,-665.37,0.00019178,2]
[346277772,1734861040031,-648.79,0.00019178,2]
[346277773,1734861040041,-3036.15,0.00019178,2]
[346277774,1734861040050,-595.69,0.00019178,2]
[346277775,1734861040060,-641.24,0.00019178,2]
[346277776,1734861040069,-360.65,0.00019178,2]
[346277777,1734861040079,-500.0,0.00019178,2]
[346277778,1734861040088,-9212.16,0.00019178,2]
[346277779,1734861040097,-500.0,0.00019178,2]
[346277780,1734861040107,-535.27,0.00019178,2]
[346277781,1734861040116,-500.0,0.00019178,2]
[346277782,1734861040126,-620.38,0.00019178,2]
[346277783,1734861040135,-500.0,0.00019178,2]
[346277784,1734861040144,-1277.57,0.00019178,2]
[346277785,1734861040154,-5516.49,0.00019178,2]
[346277787,1734861040168,-500.0,0.00019178,2]
[346277789,1734861040178,-500.0,0.00019178,2]
[346277790,1734861040188,-500.0,0.00019178,2]
[346277791,1734861040197,-500.0,0.00019178,2]
[346277792,1734861040207,-1126.56,0.00019178,2]
[346277793,1734861040217,-1193.22,0.00019178,2]
[346277794,1734861040227,-1049.67,0.00019178,2]